Cogmind - Beta 15 @@@ ROGUE MODE // 2025.09.14 @ 18:33:06 Player: cottonman132 Result: Destroyed by G-47 Trooper with Particle Gun Performance ------------- Evolutions (0) 0 Regions Visited (1) 200 Robots Destroyed (14) 70 Value Destroyed (308) 308 Prototype IDs (0) 0 Alien Tech Used (0) 0 Bonus (0) 0 TOTAL SCORE: 578 Bonus ------- None Cogmind --------- Core Integrity 0/250 Matter 300/300 Energy 108/125 System Corruption 0% Temperature Cool (9) Movement Walking (120) Location -10/Materials Parts ------- > --- POWER (1) -------- Light Ion Engine > --- PROPULSION (2) --- Aluminum Leg Aluminum Leg > --- UTILITY (2) ------ Improved Heat Sink Small Storage Unit > --- WEAPON (2) ------- EM Pulse Gun Medium Laser > --- INVENTORY (8) ---- Light Ion Engine Aluminum Leg Visual Processing Unit Sensor Array Signal Interpreter Terrain Scanner Terrain Scan Processor Seismic Detector Peak State ------------ > --- POWER ------------ Light Ion Engine > --- PROPULSION ------- Aluminum Leg Aluminum Leg > --- UTILITY ---------- Improved Heat Sink Small Storage Unit > --- WEAPON ----------- EM Pulse Gun Medium Laser > --- INVENTORY -------- Light Ion Engine Aluminum Leg Visual Processing Unit Sensor Array Signal Interpreter Terrain Scanner Terrain Scan Processor Seismic Detector [Rating: 10] Favorites ----------- Power Light Ion Engine Engine Light Ion Engine Propulsion Aluminum Leg Leg Aluminum Leg Utility Small Storage Unit Device Improved Heat Sink Storage Small Storage Unit Weapon Medium Laser Energy Gun Medium Laser Build | -11 -10 ------- Run | Yrd Mat Slots Evolved . | . . Power . | . . Propulsion . | . . Utility . | . . Weapon . | . . Parts Attached 14 | 4 10 Power 3 | 1 2 Engine 3 | 1 2 Core . | . . Reactor . | . . Propulsion 5 | 2 3 Treads . | . . Leg 5 | 2 3 Wheel . | . . Hover . | . . Flight . | . . Utility 2 | 1 1 Device 1 | . 1 Storage 1 | 1 . Processor . | . . Hackware . | . . Protection . | . . Artifact . | . . Weapon 4 | . 4 Energy Gun 4 | . 4 Energy Cannon . | . . Ballistic Gun . | . . Ballistic Cannon . | . . Launcher . | . . Special Weapon . | . . Impact Weapon . | . . Slashing Weapon . | . . Piercing Weapon . | . . Special Melee Weapon . | . . Unidentified Prototypes . | . . Parts Lost 7 | . 7 Power 2 | . 2 Propulsion 3 | . 3 Utility . | . . Weapon 2 | . 2 Highest Loss Streak 3 | . 3 To Critical Strikes . | . . Average Backups 4 | 3 4 Power . | 1 . Propulsion 1 | . 1 Utility 2 | . 2 Weapon . | 1 . Tool/Special . | . . Unused Backups 8 | . 8 Power 1 | . 1 Propulsion 1 | . 1 Utility 6 | . 6 Weapon . | . . Tool/Special . | . . Average Slot Usage (%) 79 | . 79 Engine 10 | . 10 Leg 26 | . 26 Device 9 | . 9 Storage 14 | . 14 Energy Gun 17 | . 17 Peak Build Rating 10 | 4 10 Average Rating 6 | 2 7 On Entrance 2 | . 4 Naked Turns . | . . Heaviest Build 13 | 8 13 Greatest Support 20 | 20 20 Greatest Overweight (x) 1 | 1 1 Average Overweight (x) . | . . Largest Inventory Capacity 8 | 8 8 Average Capacity 7 | 7 8 Most Carried 8 | 6 8 Average Carried 4 | 3 4 Final Capacity 8 | 8 8 Final Carried 8 | 4 8 Class Distribution -------------------- 100% | Mutant Dominant Class ---------------- Mutant | -10/Materials Resources | -11 -10 ----------- Run | Yrd Mat Matter Collected 322 | 240 82 Remotely . | . . Salvage Created 447 | . 447 Parts 23 | . 23 Haulers Intercepted . | . . Recyclers Shooed 4 | . 4 Parts Field Recycled . | . . Retrieved Matter . | . . Parts Self-Destructed . | . . Prevented . | . . Kills | -11 -10 ------- Run | Yrd Mat Combat Hostiles Destroyed 9 | . 9 Guns 7 | . 7 Classes Destroyed 5 | . 5 Builder 2 | . 2 Recycler 1 | . 1 Watcher 2 | . 2 Swarmer 3 | . 3 Grunt 6 | . 6 Best Kill Streak 6 | . 6 Combat Bots Only 3 | . 3 Max Kills in Single Turn 1 | . 1 Gunslinging . | . . Exploded . | . . Melee . | . . Uniques/NPCs Destroyed . | . . Combat | -11 -10 -------- Run | Yrd Mat Hostile Shots Fired 107 | . 107 Missed 20 | . 20 Hits 87 | . 87 Projectile 87 | . 87 Critical Strikes 3 | . 3 Damage Taken 964 | . 964 Core 256 | . 256 Absorbed by Shields . | . . Core Remaining (%) 100 | 100 . Volleys Fired 95 | . 95 Largest 2 | . 2 Hottest 100 | . 100 Shots Fired 114 | . 114 Gun 114 | . 114 Cannon . | . . Launcher . | . . Special . | . . Kinetic . | . . Thermal 108 | . 108 Explosive . | . . Electromagnetic 6 | . 6 Robot Hit Streak 10 | . 10 Robot Miss Streak 5 | . 5 Penetration Max . | . . Secondary Targets . | . . Shots Hit Robots 68 | . 68 Core Hits 23 | . 23 Critical Kills . | . . Critical Parts Destroyed . | . . Critical Strikes 9 | . 9 Burn 8 | . 8 Corrupt 1 | . 1 Melee Attacks . | . . Impact . | . . Slashing . | . . Piercing . | . . Sneak Attacks . | . . Combat Hostiles . | . . Follow-up Attacks . | . . Damage Inflicted 869 | 4 865 Guns 846 | . 846 Cannons . | . . Explosions . | . . Melee . | . . Ramming 23 | 4 19 Kinetic . | . . Thermal 831 | . 831 Explosive . | . . Electromagnetic 15 | . 15 Impact . | . . Slashing . | . . Piercing . | . . Highest Corruption . | . . Average Corruption . | . . Corruption Purged . | . . Corruption Blocked . | . . Overload Shots . | . . Overflow Damage . | . . Projectiles . | . . Explosions . | . . Melee . | . . Knockbacks . | . . Impact . | . . Kinetic . | . . Secondary . | . . Self-Inflicted Damage . | . . Shots . | . . Rammed . | . . Targets Rammed 11 | 2 9 Kicked 11 | 2 9 Crushed . | . . Highest Temperature 365 | . 365 Average Temperature 149 | . 149 Received Heat Transfer 453 | . 453 Effects 4 | . 4 Interference 4 | . 4 Siege Activations . | . . Martial Activations . | . . Shielding Activations . | . . Robots Disrupted . | . . Combat Hostiles . | . . Robots Corrupted . | . . Combat Hostiles . | . . Parts Fried . | . . Impact Corruptions . | . . Robots Melted 2 | . 2 Combat Hostiles 2 | . 2 Parts Melted 4 | . 4 Heat Transferred 3071 | . 3071 Parts Sabotaged . | . . Parts Stolen . | . . Parts Stripped . | . . Power Chain Reactions . | . . Alert | -11 -10 ------- Run | Yrd Mat Maximum Alert Level . | . . Low Security (%) 100 | 100 100 Level 1 . | . . Level 2 . | . . Level 3 . | . . Level 4 . | . . Level 5 . | . . High Security . | . . Max Security . | . . Peak Influence 76 | . 76 Initial . | . . Average 19 | . 21 Influence Increases 279 | . 279 Destroy 0b10 Robot/C 180 | . 180 Destroy 0b10 Robot/NC 25 | . 25 Destroy Leader 44 | . 44 Successful Hack 14 | . 14 Destroy Structure 1 | . 1 Partial Spotted 15 | . 15 Influence Decreases 279 | . 279 Time Decay 229 | . 229 Lost Part 50 | . 50 Squads Dispatched 1 | . 1 Investigation . | . . Extermination . | . . Reinforcement 1 | . 1 Assault . | . . Garrison . | . . Intercept . | . . Searches Triggered . | . . Construction Impeded . | . . Haulers Reinforced . | . . Active Scanning Responses . | . . Cargo Convoy Interrupts . | . . Stealth | -11 -10 --------- Run | Yrd Mat Distress Signals 2 | . 2 Communications Jammed . | . . Distress Signals . | . . Times Spotted 17 | . 17 Peak Tracking Total 6 | . 6 Tactical Retreats . | . . Traps | -11 -10 ------- Run | Yrd Mat Traps Triggered . | . . Indirectly . | . . Trap Hack Attempts . | . . Triggered . | . . Disarmed . | . . Reprogrammed . | . . Reused . | . . Traps Extracted . | . . Installed . | . . Triggered . | . . Machines | -11 -10 ---------- Run | Yrd Mat Machines Disabled . | . . Max in Single Turn . | . . Machines Repaired . | . . Machines Dismantled . | . . Machines Sabotaged . | . . Overloaded Fab Kills . | . . Hacking | -11 -10 --------- Run | Yrd Mat Machines Accessed 3 | . 3 Terminals 2 | . 2 Fabricators . | . . Repair Stations . | . . Recycling Units 1 | . 1 Scanalyzers . | . . Garrison Access . | . . Total Hacks 5 | . 5 Successful 3 | . 3 Failed 2 | . 2 Catastrophic . | . . Database Lockouts . | . . Manual . | . . Terminals 4 | . 4 Fabricators . | . . Repair Stations . | . . Recycling Units 1 | . 1 Scanalyzers . | . . Garrison Access . | . . Terminal Hacks 2 | . 2 Alert Level 1 | . 1 Hauler Manifests 1 | . 1 Fabricator Hacks . | . . Repair Station Hacks . | . . Recycling Unit Hacks 1 | . 1 Report Inventory 1 | . 1 Scanalyzer . | . . Garrison Access Hacks . | . . Unauthorized Hacks . | . . Terminals . | . . Fabricators . | . . Repair Stations . | . . Recycling Units . | . . Scanalyzers . | . . Garrison Access . | . . Data Cores Recovered . | . . Used . | . . Hacking Detections 2 | . 2 Full Trace Events . | . . Feedback Events . | . . Feedback Blocked . | . . Robot Schematics Acquired . | . . Robots Built . | . . Authchips . | . . Time . | . . Total Robot Build Rating . | . . Part Schematics Acquired . | . . Parts Built . | . . Authchips . | . . Time . | . . Total Part Build Rating . | . . Parts Repaired . | . . Time . | . . Parts Recycled . | . . Recycled Matter . | . . Retrieved Matter . | . . Retrieved Components . | . . Parts Scanalyzed . | . . Part Schematics Acquired . | . . Parts Damaged . | . . Bothacking | -11 -10 ------------ Run | Yrd Mat Used RIF Installer . | . . Robots Hacked . | . . Non-combat . | . . Combat . | . . Robot Hacks Applied . | . . Relay Couplers Released . | . . Fabnet Peak Effective % . | . . Robots Rewired . | . . Allies Hacked . | . . Hacks Repelled . | . . Allies | -11 -10 -------- Run | Yrd Mat Total Allies . | . . Largest Group . | . . Highest-Rated Group . | . . Highest-Rated Ally . | . . Total Orders . | . . Ally Attacks . | . . Total Damage . | . . Kills . | . . Allies Corrupted . | . . Allies Melted . | . . Intel | -11 -10 ------- Run | Yrd Mat Active Infowar (turns) . | . . Robot Analysis Total . | . . Derelict Logs Recovered . | . . Drone Launches . | . . Drone Recoveries . | . . Exploration | -11 -10 ------------- Run | Yrd Mat Turns Passed 775 | 63 712 Spaces Moved 425 | 45 380 Core 17 | 17 . Treads . | . . Legs 408 | 28 380 Wheels . | . . Hover . | . . Flight . | . . Fastest Speed 50 | 50 120 Average Speed 119 | 110 120 Slowest Speed 190 | 120 190 Overloaded Moves . | . . Propulsion Burnouts . | . . Robots Hopped . | . . Potential Cave-ins . | . . Cave-ins Triggered . | . . Exploration Rate (%) 42 | 3 82 Regions Visited 1 Branch Regions . Pre-discovered Areas . | . . Known Exits Taken . | . . Unknown Exits Taken 1 | 1 . Scrap Searched . | . . Spaces Dug . | . . Terrain Destroyed . | . . Melee . | . . Projectile . | . . AOE . | . . Terrain Rammed . | . . Walls Destroyed . | . . Machines Disabled . | . . Actions | -11 -10 --------- Run | Yrd Mat Total 577 | 58 519 Wait 10 | . 10 Move 424 | 44 380 Hop . | . . Pick Up 22 | 8 14 Fast Attach . | . . Attach 14 | 4 10 Detach . | . . Swap 1 | . 1 Drop . | . . Fire 95 | . 95 Melee . | . . Ram . | . . Kick 11 | 2 9 Crush . | . . Escape Stasis . | . . Rewire . | . . Trap . | . . Miscellaneous . | . . Route ------- -11/Scrapyard -10/Materials (discovered 3 exits: [*Mat x2] / [*Min]) History --------- Turn | Location | Event 15 | -11/Scrapyard | Discovered new exit (range 15) 64 | -11/Scrapyard | Entered Materials 222 | -10/Materials | Lost 3 parts (2p1n) 245 | -10/Materials | Core integrity fell below 50% 309 | -10/Materials | Lost 3 parts (1n2w) 311 | -10/Materials | Build established: Mutant 389 | -10/Materials | Discovered new exit (range 12) 433 | -10/Materials | Core integrity fell below 20% 525 | -10/Materials | Discovered new exit (range 12) 616 | -10/Materials | Discovered new exit (range 11) 776 | -10/Materials | Destroyed by G-47 Trooper with Particle Gun Last Messages --------------- 00599_ G-34 Mercenary heat spikes uncontrollably. 00599_ G-34 Mercenary overheating. 00600_ G-34 Mercenary heat spikes uncontrollably. 00600_ Aluminum Leg melted. 00600_ G-34 Mercenary destroyed. 00610_ Acquired EM Pulse Gun. 00613_ Acquired 10 matter. 00616_ EXIT=FOUND 00617_ T-07 Excavator is excavating. 00629_ Acquired Seismic Detector. 00660_ W-16 Scout destroyed. 00669_ Acquired 10 matter. 00673_ Acquired Lgt. Ion Engine. 00719_ Acquired Sensor Array. 00722_ Connecting with Terminal... >>Alert(Check) Current Alert Level: Low Security 00765_ Critical hit (Burn: +37). Map ----- +----------------------------------------------------+ | ????????????????# < #??????###########???????????? | | ????????????????# #??????# #???????????? | | ???????????????? ######## = #???????????? | | ????????????????# # !!|# #???????????? | | ????????????????# # " !!|# #???????????? | | ????????????????# # T ||# #???????????? | | ????????????????# # " # #???????????? | | #+###?########### # # ????????????? | | ### ! # # #?? ??????????????? | | + # ###+########+################? | | % ### # #? | | ##+#### %+ #? | | ! !## """ # #? | | ## "T" """ # ########### ###+######## ##? | | " ## """ """ # #?????????# # #??# #?? | | """ ## # #?????????#=% # " #??# #?? | | """ ############ #?????????# = # ""#??# #?? | | """ #??????????# ########### # ""#??# ### | | "" #??????????# # # + """#??# ## | | """ #??????????# # # # "" #??# ## | | "" ############ # ##### """#??# ##" | | "" + + ## # #???# """#??# ##" | | " # ## = ## # #???# """#??# ##" | | # ## ## + % #???# " #??# ## | | ###### ## ! ## # % #???# #### ##+ | | ?????# ## ## # %@% #???########## | | ##???# ## ## ######g####????????????# | | #???# #####+### % #####%################# | | #???# %% ##+ | | #???# " # | | #???# k # | | #########+#####! ####################### # " | | # ###+#######?????????????????# # " | | # """ """"" # #?????????????????# ### | | ?# """ """"" # #########?????????# #?? | | ?# """ """"" # ## #?????????# #?? | | ## # ## """#?????????# ?? | | / # ## """#?????????# ?? | | #######""T""#### ## """#?????????# ? | | ??????#"""""#??####+####### #?????????# ? | | ??????#######????# # """#?????????# | | ????????########## + """#?????????# ! | | ????????# # ]% # """#?????????? ##? | | ????????# # ] # #?????????? ??? | | ????????# # ] # """#???????????????? | | ????????# # / """#???????????????? | | ????????# + # """#???????????????? | | ????????# # # #???????????????? | | ????????# # """ ##+#####???????????????? | | ????????# # """ #???????????????????? | +----------------------------------------------------+ Best States ------------- Heat Dissipation 39 Energy Generation 10 Energy Capacity 125 Matter Stores 300 Matter Capacity 300 Sight Range 16 Terrain Scan Density 10 Evasion (%) 55 Item Schematics ----------------- None Robot Schematics ------------------ None Fabricated ------------ Nothing Repaired ---------- Nothing Alien Tech Used ----------------- None Achievements -------------- None Challenges ------------ None Game ------ Seed ReinforcedTransportSlayer Manual? 0 Play Time 00:10:03 Cumulative 8.5 hours Start 2025.09.13 @ 18:46:59 End 2025.09.14 @ 18:33:06 Sessions 2 Manual Loads 0 Difficulty Rogue Special Mode None Game No. 23 Rogue 23 Adventurer 0 Explorer 0 Win Type - Total 0 Types 0/0/0/0/0/0/0/0/0/0 Lore% 18 Gallery% 10 Achievement% 15 Wizard Run 0 Options --------- Layout 2 ASCII 0 Keyboard 0 Movement Mouse Keybinds 0 Fullscreen 1 Font 24/Smallcaps Map View 50x44 Zoom Use 0% Tactical HUD 1 Map Filters NONE Filters NONE Steam 1 RUN: b28a67c5-1d31-4e13-823b-fd9d0659d3a1